[Event "Early-Titled-Tuesday-Blitz-March-26-2024"]
[Site "Chess.com"]
[Date "2024.03.26"]
[Round "8"]
[White "SAInt_666"]
[Black "1mbl4"]
[Result "0-1"]
[WhiteElo "2716"]
[BlackElo "2587"]
[TimeControl "180+1"]
[EndTime "9:25:54 PDT"]
[Termination "1mbl4 won by resignation"]

1. d4 {[%clk 0:03:00.7]} 1... Nf6 {[%clk 0:02:59.6]} 2. c4 {[%clk 0:02:53.2]}
2... g6 {[%clk 0:02:59.6]} 3. Nf3 {[%clk 0:02:49.8]} 3... Bg7 {[%clk 0:02:59.8]}
4. e3 {[%clk 0:02:50.5]} 4... O-O {[%clk 0:02:59.9]} 5. Be2 {[%clk 0:02:50.9]}
5... d6 {[%clk 0:02:58.2]} 6. Nc3 {[%clk 0:02:50.5]} 6... Nc6 {[%clk 0:02:56.4]}
7. d5 {[%clk 0:02:49.8]} 7... Nb8 {[%clk 0:02:50.3]} 8. O-O {[%clk 0:02:49]}
8... e6 {[%clk 0:02:49]} 9. dxe6 {[%clk 0:02:48.6]} 9... fxe6 {[%clk 0:02:46.5]}
10. Qc2 {[%clk 0:02:41.8]} 10... Nc6 {[%clk 0:02:44.2]} 11. b3 {[%clk
0:02:37.4]} 11... e5 {[%clk 0:02:41.5]} 12. Bb2 {[%clk 0:02:25.3]} 12... Bf5
{[%clk 0:02:40.5]} 13. Qd2 {[%clk 0:02:20.2]} 13... Ne4 {[%clk 0:02:26.3]} 14.
Nxe4 {[%clk 0:02:19.7]} 14... Bxe4 {[%clk 0:02:27.2]} 15. Rad1 {[%clk
0:02:03.5]} 15... Qe7 {[%clk 0:02:23.7]} 16. Ne1 {[%clk 0:02:03.1]} 16... Rad8
{[%clk 0:02:19.6]} 17. Bf3 {[%clk 0:02:01.1]} 17... Bxf3 {[%clk 0:01:44.6]} 18.
Nxf3 {[%clk 0:01:58.7]} 18... Kh8 {[%clk 0:01:44.8]} 19. Ne1 {[%clk 0:01:22.2]}
19... e4 {[%clk 0:01:40.9]} 20. Bxg7+ {[%clk 0:01:20.8]} 20... Kxg7 {[%clk
0:01:40.6]} 21. f4 {[%clk 0:01:17.2]} 21... exf3 {[%clk 0:01:37]} 22. Rxf3
{[%clk 0:01:15.2]} 22... Ne5 {[%clk 0:01:27.2]} 23. Rf4 {[%clk 0:01:10.4]} 23...
g5 {[%clk 0:01:19.5]} 24. Rf2 {[%clk 0:00:55.6]} 24... Qe6 {[%clk 0:01:01.1]}
25. Nf3 {[%clk 0:00:48.1]} 25... Nxf3+ {[%clk 0:00:54]} 26. gxf3 {[%clk
0:00:49]} 26... b6 {[%clk 0:00:40.5]} 27. Qd4+ {[%clk 0:00:44.6]} 27... Kg6
{[%clk 0:00:38]} 28. Kg2 {[%clk 0:00:41.1]} 28... Rde8 {[%clk 0:00:37.9]} 29.
Rd3 {[%clk 0:00:39.3]} 29... Rf5 {[%clk 0:00:36.7]} 30. Qc3 {[%clk 0:00:34.2]}
30... Ref8 {[%clk 0:00:35.4]} 31. Rd4 {[%clk 0:00:26.7]} 31... h5 {[%clk
0:00:31.3]} 32. h3 {[%clk 0:00:24.6]} 32... Qf7 {[%clk 0:00:25.6]} 33. Qd3
{[%clk 0:00:23.1]} 33... Kh6 {[%clk 0:00:25.6]} 34. Qe4 {[%clk 0:00:19.8]} 34...
Re8 {[%clk 0:00:25.7]} 35. Qc6 {[%clk 0:00:19.3]} 35... Rxe3 {[%clk 0:00:24.2]}
36. Re4 {[%clk 0:00:17.8]} 36... Rexf3 {[%clk 0:00:21.3]} 37. Rxf3 {[%clk
0:00:15.9]} 37... Rxf3 {[%clk 0:00:21]} 38. Re6+ {[%clk 0:00:15.6]} 38... Qxe6
{[%clk 0:00:21.1]} 39. Qxf3 {[%clk 0:00:16.1]} 39... Kg6 {[%clk 0:00:20.4]} 40.
Qc6 {[%clk 0:00:14.5]} 40... Qe2+ {[%clk 0:00:20.3]} 41. Kg1 {[%clk 0:00:14.1]}
41... Qd1+ {[%clk 0:00:20.2]} 42. Kg2 {[%clk 0:00:14.2]} 42... Qc2+ {[%clk
0:00:20.5]} 43. Kg1 {[%clk 0:00:14.2]} 43... Qb1+ {[%clk 0:00:20.5]} 44. Kg2
{[%clk 0:00:14.3]} 44... Qxa2+ {[%clk 0:00:20.8]} 45. Kg1 {[%clk 0:00:14.8]}
45... Qa1+ {[%clk 0:00:20.7]} 46. Kg2 {[%clk 0:00:13.4]} 46... Qb2+ {[%clk
0:00:20.9]} 47. Kg1 {[%clk 0:00:13.8]} 47... Qxb3 {[%clk 0:00:20.8]} 48. Qe8+
{[%clk 0:00:08.1]} 48... Kf6 {[%clk 0:00:20]} 49. Qf8+ {[%clk 0:00:08.3]} 49...
Ke5 {[%clk 0:00:20]} 50. Qg7+ {[%clk 0:00:07.6]} 50... Ke4 {[%clk 0:00:20]} 51.
Qxg5 {[%clk 0:00:05.1]} 51... Qe3+ {[%clk 0:00:18.6]} 0-1

[Event "Early-Titled-Tuesday-Blitz-March-26-2024"]
[Site "Chess.com"]
[Date "2024.03.26"]
[Round "8"]
[White "MNyuyu"]
[Black "kai_nov"]
[Result "1-0"]
[WhiteElo "2416"]
[BlackElo "2336"]
[TimeControl "180+1"]
[EndTime "9:25:54 PDT"]
[Termination "MNyuyu won by checkmate"]

1. d4 {[%clk 0:03:00.9]} 1... Nf6 {[%clk 0:02:56.6]} 2. Nf3 {[%clk 0:03:00.6]}
2... d5 {[%clk 0:02:56.4]} 3. Bf4 {[%clk 0:02:59.9]} 3... g6 {[%clk 0:02:56.5]}
4. e3 {[%clk 0:02:59.6]} 4... Bg7 {[%clk 0:02:56]} 5. h3 {[%clk 0:03:00.2]} 5...
O-O {[%clk 0:02:56.5]} 6. Nbd2 {[%clk 0:02:59.6]} 6... c5 {[%clk 0:02:57]} 7. c3
{[%clk 0:02:59.9]} 7... Nc6 {[%clk 0:02:53.7]} 8. Be2 {[%clk 0:02:58.3]} 8...
Qb6 {[%clk 0:02:54]} 9. Qb3 {[%clk 0:02:55.4]} 9... c4 {[%clk 0:02:52.2]} 10.
Qc2 {[%clk 0:02:54.9]} 10... Bf5 {[%clk 0:02:51.2]} 11. Qc1 {[%clk 0:02:55.5]}
11... e6 {[%clk 0:02:47.2]} 12. O-O {[%clk 0:02:55.3]} 12... Rfd8 {[%clk
0:02:46.3]} 13. Ne5 {[%clk 0:02:54.8]} 13... Nxe5 {[%clk 0:02:45.8]} 14. Bxe5
{[%clk 0:02:55]} 14... Ne4 {[%clk 0:02:45.8]} 15. Bxg7 {[%clk 0:02:54.3]} 15...
Kxg7 {[%clk 0:02:45.7]} 16. Nxe4 {[%clk 0:02:53.9]} 16... Bxe4 {[%clk
0:02:44.9]} 17. f3 {[%clk 0:02:53.3]} 17... Bf5 {[%clk 0:02:45]} 18. g4 {[%clk
0:02:52.8]} 18... Bd3 {[%clk 0:02:45.1]} 19. Bxd3 {[%clk 0:02:51.1]} 19... cxd3
{[%clk 0:02:45.4]} 20. Rd1 {[%clk 0:02:51.1]} 20... Qb5 {[%clk 0:02:42.6]} 21.
Qd2 {[%clk 0:02:51.1]} 21... f5 {[%clk 0:02:38.6]} 22. Rab1 {[%clk 0:02:48.7]}
22... fxg4 {[%clk 0:02:32.4]} 23. hxg4 {[%clk 0:02:49.6]} 23... Rf8 {[%clk
0:02:32.2]} 24. Kg2 {[%clk 0:02:50]} 24... Qe8 {[%clk 0:02:18.1]} 25. Qxd3
{[%clk 0:02:48.5]} 25... Qf7 {[%clk 0:02:14.5]} 26. f4 {[%clk 0:02:48.1]} 26...
Kf6 {[%clk 0:02:06.5]} 27. g5+ {[%clk 0:02:46.3]} 27... Ke7 {[%clk 0:02:05.2]}
28. c4 {[%clk 0:02:36.7]} 28... Rac8 {[%clk 0:01:56.8]} 29. Rbc1 {[%clk
0:02:28.4]} 29... Rfd8 {[%clk 0:01:52.4]} 30. Qa3+ {[%clk 0:02:23.8]} 30... Ke8
{[%clk 0:01:50.7]} 31. cxd5 {[%clk 0:02:22.7]} 31... exd5 {[%clk 0:01:49.7]} 32.
Qxa7 {[%clk 0:02:06.8]} 32... Qe6 {[%clk 0:01:45]} 33. Qa4+ {[%clk 0:01:22.7]}
33... Kf7 {[%clk 0:01:40.5]} 34. Rxc8 {[%clk 0:00:38.7]} 34... Qg4+ {[%clk
0:01:33.3]} 35. Kf2 {[%clk 0:00:37]} 35... Rxc8 {[%clk 0:01:32.4]} 36. Rh1
{[%clk 0:00:22.7]} 36... Qf5 {[%clk 0:01:17.4]} 37. Rxh7+ {[%clk 0:00:17.5]}
37... Kg8 {[%clk 0:01:16.7]} 38. Qd7 {[%clk 0:00:16.2]} 38... Rc2+ {[%clk
0:01:14.4]} 39. Kg3 {[%clk 0:00:16.4]} 39... Qxd7 {[%clk 0:01:01.6]} 40. Rxd7
{[%clk 0:00:16.7]} 40... Rxb2 {[%clk 0:01:00.9]} 41. Rxd5 {[%clk 0:00:16.6]}
41... Rxa2 {[%clk 0:01:00.7]} 42. Rd7 {[%clk 0:00:16.3]} 42... Rb2 {[%clk
0:00:59]} 43. Kf3 {[%clk 0:00:16]} 43... b5 {[%clk 0:00:59.3]} 44. Rb7 {[%clk
0:00:15.1]} 44... b4 {[%clk 0:00:59.9]} 45. e4 {[%clk 0:00:15.1]} 45... Rb3+
{[%clk 0:00:59.2]} 46. Kg4 {[%clk 0:00:14.2]} 46... Re3 {[%clk 0:00:58.2]} 47.
e5 {[%clk 0:00:13.5]} 47... b3 {[%clk 0:00:52.4]} 48. d5 {[%clk 0:00:12.2]}
48... Rd3 {[%clk 0:00:51.1]} 49. d6 {[%clk 0:00:11.7]} 49... Kf8 {[%clk
0:00:50]} 50. f5 {[%clk 0:00:08.8]} 50... Rd4+ {[%clk 0:00:47.9]} 51. Kf3 {[%clk
0:00:09.3]} 51... gxf5 {[%clk 0:00:46.9]} 52. g6 {[%clk 0:00:09.8]} 52... Rd5
{[%clk 0:00:40.9]} 53. Kf4 {[%clk 0:00:09.3]} 53... Rd3 {[%clk 0:00:34.1]} 54.
Kxf5 {[%clk 0:00:09.3]} 54... Rf3+ {[%clk 0:00:33.1]} 55. Ke6 {[%clk 0:00:09.8]}
55... b2 {[%clk 0:00:30.8]} 56. d7 {[%clk 0:00:09.6]} 56... Rd3 {[%clk
0:00:25.5]} 57. Rxb2 {[%clk 0:00:09.8]} 57... Kg7 {[%clk 0:00:25.1]} 58. Rb8
{[%clk 0:00:10.3]} 58... Kh6 {[%clk 0:00:23.7]} 59. d8=Q {[%clk 0:00:10.6]}
59... Rd6+ {[%clk 0:00:23.3]} 60. Qxd6 {[%clk 0:00:10.3]} 60... Kg7 {[%clk
0:00:22.6]} 61. Qe7+ {[%clk 0:00:10.2]} 61... Kh6 {[%clk 0:00:21.6]} 62. Rh8+
{[%clk 0:00:09.3]} 62... Kxg6 {[%clk 0:00:21.2]} 63. Qf6# {[%clk 0:00:08.8]} 1-0

[Event "Early-Titled-Tuesday-Blitz-March-26-2024"]
[Site "Chess.com"]
[Date "2024.03.26"]
[Round "8"]
[White "xakevicius91"]
[Black "BallottiLuca"]
[Result "1/2-1/2"]
[WhiteElo "2518"]
[BlackElo "2366"]
[TimeControl "180+1"]
[EndTime "9:25:57 PDT"]
[Termination "Game drawn by repetition"]

1. e4 {[%clk 0:02:51.9]} 1... e5 {[%clk 0:02:59.6]} 2. Nf3 {[%clk 0:02:47]} 2...
Nf6 {[%clk 0:02:59.4]} 3. Nxe5 {[%clk 0:02:45.7]} 3... Nxe4 {[%clk 0:02:58.4]}
4. Be2 {[%clk 0:02:44.6]} 4... d5 {[%clk 0:02:50]} 5. O-O {[%clk 0:02:44]} 5...
Bd6 {[%clk 0:02:49.5]} 6. Nf3 {[%clk 0:02:44.5]} 6... O-O {[%clk 0:02:49.1]} 7.
d3 {[%clk 0:02:43.7]} 7... Nf6 {[%clk 0:02:48.9]} 8. d4 {[%clk 0:02:44.2]} 8...
Re8 {[%clk 0:02:43.4]} 9. h3 {[%clk 0:02:21.5]} 9... Bf5 {[%clk 0:02:42.9]} 10.
Nc3 {[%clk 0:02:20.3]} 10... c6 {[%clk 0:02:42.8]} 11. Bd3 {[%clk 0:02:17]}
11... Bxd3 {[%clk 0:02:33.6]} 12. Qxd3 {[%clk 0:02:14.3]} 12... Nbd7 {[%clk
0:02:33.6]} 13. Bd2 {[%clk 0:02:09.8]} 13... h6 {[%clk 0:02:32.4]} 14. a3 {[%clk
0:02:09]} 14... Qc7 {[%clk 0:02:32.4]} 15. b4 {[%clk 0:02:09]} 15... Nb6 {[%clk
0:02:28.8]} 16. Rae1 {[%clk 0:02:02]} 16... Nc4 {[%clk 0:02:27.8]} 17. Bc1
{[%clk 0:02:01.5]} 17... b5 {[%clk 0:02:19.9]} 18. Nd2 {[%clk 0:02:01.2]} 18...
a5 {[%clk 0:02:10.8]} 19. bxa5 {[%clk 0:01:53.9]} 19... Qxa5 {[%clk 0:02:06.2]}
20. Rxe8+ {[%clk 0:01:28.6]} 20... Rxe8 {[%clk 0:02:07.1]} 21. a4 {[%clk
0:01:20.7]} 21... Bb4 {[%clk 0:01:52.4]} 22. Ndb1 {[%clk 0:01:12]} 22... bxa4
{[%clk 0:01:46.6]} 23. g4 {[%clk 0:01:07.5]} 23... a3 {[%clk 0:01:44.8]} 24. Na2
{[%clk 0:01:07.1]} 24... Bd6 {[%clk 0:01:16]} 25. Nbc3 {[%clk 0:01:02.9]} 25...
Ne4 {[%clk 0:01:00.9]} 26. Ne2 {[%clk 0:01:02.7]} 26... Rb8 {[%clk 0:00:45.9]}
27. Kg2 {[%clk 0:00:51]} 27... Rb1 {[%clk 0:00:42.3]} 28. h4 {[%clk 0:00:46.2]}
28... Qd8 {[%clk 0:00:34.6]} 29. g5 {[%clk 0:00:43.5]} 29... Rb8 {[%clk
0:00:23.8]} 30. f3 {[%clk 0:00:41.7]} 30... hxg5 {[%clk 0:00:18.4]} 31. fxe4
{[%clk 0:00:41.7]} 31... gxh4 {[%clk 0:00:18.3]} 32. e5 {[%clk 0:00:38.4]} 32...
Be7 {[%clk 0:00:15.3]} 33. Qf5 {[%clk 0:00:35.4]} 33... Qe8 {[%clk 0:00:12.7]}
34. Nf4 {[%clk 0:00:34]} 34... Rb1 {[%clk 0:00:10.7]} 35. Kh2 {[%clk 0:00:23.2]}
35... Ra1 {[%clk 0:00:06.2]} 36. Rg1 {[%clk 0:00:21.9]} 36... Rxa2 {[%clk
0:00:04.8]} 37. e6 {[%clk 0:00:19.7]} 37... fxe6 {[%clk 0:00:01.7]} 38. Nxe6
{[%clk 0:00:20]} 38... Qf7 {[%clk 0:00:02.4]} 39. Rxg7+ {[%clk 0:00:19.1]} 39...
Qxg7 {[%clk 0:00:03.3]} 40. Nxg7 {[%clk 0:00:19.1]} 40... Kxg7 {[%clk
0:00:04.2]} 41. Kh3 {[%clk 0:00:16.7]} 41... Ra1 {[%clk 0:00:03.3]} 42. Bg5
{[%clk 0:00:15.9]} 42... Bxg5 {[%clk 0:00:03.3]} 43. Qxg5+ {[%clk 0:00:16.8]}
43... Kf7 {[%clk 0:00:03.5]} 44. Qf5+ {[%clk 0:00:16.6]} 44... Ke7 {[%clk
0:00:03.4]} 45. Qc8 {[%clk 0:00:16.8]} 45... a2 {[%clk 0:00:02.3]} 46. Qa6
{[%clk 0:00:15.2]} 46... Rh1+ {[%clk 0:00:02]} 47. Kg4 {[%clk 0:00:13.8]} 47...
a1=Q {[%clk 0:00:02.9]} 48. Qb7+ {[%clk 0:00:14.1]} 48... Kd6 {[%clk 0:00:03.1]}
49. Qb8+ {[%clk 0:00:14.6]} 49... Kd7 {[%clk 0:00:02.8]} 50. Qb7+ {[%clk
0:00:14.8]} 50... Ke8 {[%clk 0:00:02.9]} 51. Qc8+ {[%clk 0:00:15.4]} 51... Ke7
{[%clk 0:00:02.6]} 52. Qc7+ {[%clk 0:00:15.9]} 52... Ke6 {[%clk 0:00:02.3]} 53.
Qc8+ {[%clk 0:00:13.5]} 53... Kf6 {[%clk 0:00:02.2]} 54. Qf8+ {[%clk 0:00:13.4]}
54... Ke6 {[%clk 0:00:02.3]} 55. Qe8+ {[%clk 0:00:13.8]} 55... Kd6 {[%clk
0:00:01.9]} 56. Qd8+ {[%clk 0:00:13.4]} 56... Ke6 {[%clk 0:00:02.3]} 57. Qe8+
{[%clk 0:00:12]} 57... Kd6 {[%clk 0:00:02.6]} 58. Qd8+ {[%clk 0:00:10.2]} 58...
Ke6 {[%clk 0:00:03]} 59. Qe8+ {[%clk 0:00:10.9]} 1/2-1/2

[Event "Early-Titled-Tuesday-Blitz-March-26-2024"]
[Site "Chess.com"]
[Date "2024.03.26"]
[Round "8"]
[White "KetiTsatsalashvili"]
[Black "Bilan_Danila"]
[Result "1-0"]
[WhiteElo "2459"]
[BlackElo "2624"]
[TimeControl "180+1"]
[EndTime "9:26:00 PDT"]
[Termination "KetiTsatsalashvili won by checkmate"]

1. d4 {[%clk 0:03:00.9]} 1... d5 {[%clk 0:03:00]} 2. Nf3 {[%clk 0:02:59]} 2...
Nf6 {[%clk 0:02:59.7]} 3. Bg5 {[%clk 0:02:56.9]} 3... Ne4 {[%clk 0:02:59.4]} 4.
Bh4 {[%clk 0:02:53.3]} 4... c5 {[%clk 0:02:59.6]} 5. e3 {[%clk 0:02:50.8]} 5...
Nc6 {[%clk 0:02:59.8]} 6. Be2 {[%clk 0:02:45.1]} 6... cxd4 {[%clk 0:02:52.5]} 7.
exd4 {[%clk 0:02:44.7]} 7... Qb6 {[%clk 0:02:52.7]} 8. b3 {[%clk 0:02:30.4]}
8... Bg4 {[%clk 0:02:42.9]} 9. c3 {[%clk 0:02:23]} 9... e6 {[%clk 0:02:19.4]}
10. O-O {[%clk 0:02:19.4]} 10... Bd6 {[%clk 0:02:17.3]} 11. h3 {[%clk
0:02:17.7]} 11... Bf5 {[%clk 0:02:14.5]} 12. Nfd2 {[%clk 0:02:12]} 12... g5
{[%clk 0:00:55.4]} 13. Nxe4 {[%clk 0:02:03.5]} 13... Bxe4 {[%clk 0:00:47.3]} 14.
Bg3 {[%clk 0:01:43.6]} 14... Bxg3 {[%clk 0:00:46.6]} 15. fxg3 {[%clk 0:01:44.5]}
15... f5 {[%clk 0:00:46.6]} 16. Bh5+ {[%clk 0:01:43]} 16... Ke7 {[%clk
0:00:39.8]} 17. Kh2 {[%clk 0:01:42.7]} 17... Rac8 {[%clk 0:00:36.3]} 18. Nd2
{[%clk 0:01:36.2]} 18... Kd6 {[%clk 0:00:32.1]} 19. Nxe4+ {[%clk 0:01:23.4]}
19... dxe4 {[%clk 0:00:32.4]} 20. d5 {[%clk 0:01:06.3]} 20... Ne7 {[%clk
0:00:24.1]} 21. dxe6+ {[%clk 0:01:01.6]} 21... Kxe6 {[%clk 0:00:23.3]} 22. Qd2
{[%clk 0:00:57.6]} 22... h6 {[%clk 0:00:20.4]} 23. Rad1 {[%clk 0:00:51.4]} 23...
Rhd8 {[%clk 0:00:20.5]} 24. Qc2 {[%clk 0:00:36.1]} 24... Rxd1 {[%clk 0:00:17.7]}
25. Rxd1 {[%clk 0:00:37]} 25... Rd8 {[%clk 0:00:18.6]} 26. Re1 {[%clk
0:00:29.8]} 26... Kf6 {[%clk 0:00:16.3]} 27. Qe2 {[%clk 0:00:20.3]} 27... Qd6
{[%clk 0:00:15.7]} 28. Qc4 {[%clk 0:00:19.4]} 28... a6 {[%clk 0:00:14.9]} 29.
Qf7+ {[%clk 0:00:18.7]} 29... Ke5 {[%clk 0:00:13.9]} 30. Rd1 {[%clk 0:00:15.2]}
30... Nc6 {[%clk 0:00:05.1]} 31. Rxd6 {[%clk 0:00:13.4]} 31... Rxd6 {[%clk
0:00:06]} 32. Qg7+ {[%clk 0:00:13.3]} 32... Rf6 {[%clk 0:00:04.1]} 33. Qxb7
{[%clk 0:00:13.9]} 33... e3 {[%clk 0:00:03.7]} 34. Qc7+ {[%clk 0:00:13.3]} 34...
Rd6 {[%clk 0:00:03.9]} 35. c4 {[%clk 0:00:12.2]} 35... Ke6 {[%clk 0:00:03.1]}
36. c5 {[%clk 0:00:12.5]} 36... Rd2 {[%clk 0:00:01.5]} 37. Qxc6+ {[%clk
0:00:12.2]} 37... Ke5 {[%clk 0:00:01.7]} 38. Qc7+ {[%clk 0:00:12]} 38... Kd4
{[%clk 0:00:02.4]} 39. Bf3 {[%clk 0:00:12.1]} 39... g4 {[%clk 0:00:02.6]} 40.
Qd6+ {[%clk 0:00:11.6]} 40... Kc3 {[%clk 0:00:03.2]} 41. Qe5+ {[%clk 0:00:11.8]}
41... Kd3 {[%clk 0:00:02.5]} 42. hxg4 {[%clk 0:00:12.1]} 42... fxg4 {[%clk
0:00:01.5]} 43. Qe4+ {[%clk 0:00:12.5]} 43... Kc3 {[%clk 0:00:01.3]} 44. Qxe3+
{[%clk 0:00:12.9]} 44... Rd3 {[%clk 0:00:02]} 45. Qe1+ {[%clk 0:00:13.1]} 45...
Kd4 {[%clk 0:00:01.8]} 46. Bxg4 {[%clk 0:00:12.8]} 46... Kxc5 {[%clk 0:00:02.7]}
47. Qe5+ {[%clk 0:00:12.2]} 47... Rd5 {[%clk 0:00:03.6]} 48. Qc3+ {[%clk
0:00:12.2]} 48... Kd6 {[%clk 0:00:04]} 49. Bf3 {[%clk 0:00:12.7]} 49... Rg5
{[%clk 0:00:03.9]} 50. Qf6+ {[%clk 0:00:12.7]} 50... Kc5 {[%clk 0:00:03.8]} 51.
Qxh6 {[%clk 0:00:13.4]} 51... Re5 {[%clk 0:00:04.7]} 52. Qf4 {[%clk 0:00:13.5]}
52... Re1 {[%clk 0:00:04.8]} 53. g4 {[%clk 0:00:13.8]} 53... a5 {[%clk
0:00:05.4]} 54. g5 {[%clk 0:00:14.4]} 54... Re7 {[%clk 0:00:05.2]} 55. g6 {[%clk
0:00:14.5]} 55... a4 {[%clk 0:00:06.1]} 56. bxa4 {[%clk 0:00:14.4]} 56... Kb6
{[%clk 0:00:06.5]} 57. Qf6+ {[%clk 0:00:14.4]} 57... Re6 {[%clk 0:00:05]} 58.
Qxe6+ {[%clk 0:00:14.7]} 58... Ka7 {[%clk 0:00:05.1]} 59. Qd7+ {[%clk
0:00:14.8]} 59... Kb6 {[%clk 0:00:04.1]} 60. Qc6+ {[%clk 0:00:15.1]} 60... Ka5
{[%clk 0:00:04.5]} 61. Qb5# {[%clk 0:00:15.4]} 1-0

[Event "Early-Titled-Tuesday-Blitz-March-26-2024"]
[Site "Chess.com"]
[Date "2024.03.26"]
[Round "8"]
[White "Brahianzevich"]
[Black "jinbojinbo"]
[Result "0-1"]
[WhiteElo "2466"]
[BlackElo "2644"]
[TimeControl "180+1"]
[EndTime "9:26:01 PDT"]
[Termination "jinbojinbo won by resignation"]

1. e4 {[%clk 0:02:59.3]} 1... e5 {[%clk 0:02:59.1]} 2. Nf3 {[%clk 0:02:59.2]}
2... Nc6 {[%clk 0:02:59.4]} 3. Bb5 {[%clk 0:02:59.3]} 3... a6 {[%clk 0:02:59.2]}
4. Ba4 {[%clk 0:02:59.7]} 4... Nf6 {[%clk 0:02:59.5]} 5. O-O {[%clk 0:02:59.5]}
5... Nxe4 {[%clk 0:02:59.7]} 6. d4 {[%clk 0:02:52.2]} 6... b5 {[%clk 0:02:58.8]}
7. Bb3 {[%clk 0:02:51.9]} 7... d5 {[%clk 0:02:56.4]} 8. dxe5 {[%clk 0:02:33.2]}
8... Be6 {[%clk 0:02:55.9]} 9. c3 {[%clk 0:02:17.9]} 9... Bc5 {[%clk 0:02:55.1]}
10. Nbd2 {[%clk 0:02:09.3]} 10... O-O {[%clk 0:02:54.5]} 11. Qe2 {[%clk
0:01:42.8]} 11... Nxd2 {[%clk 0:01:40.1]} 12. Bxd2 {[%clk 0:01:39.7]} 12... d4
{[%clk 0:01:30.4]} 13. Bc2 {[%clk 0:01:14.4]} 13... g6 {[%clk 0:01:19.1]} 14.
Bg5 {[%clk 0:01:10.2]} 14... Qd7 {[%clk 0:00:37.3]} 15. Rad1 {[%clk 0:00:58.4]}
15... Rfe8 {[%clk 0:00:36.1]} 16. cxd4 {[%clk 0:00:38]} 16... Nxd4 {[%clk
0:00:33.9]} 17. Nxd4 {[%clk 0:00:36.4]} 17... Bxd4 {[%clk 0:00:33.7]} 18. Qe4
{[%clk 0:00:35]} 18... c5 {[%clk 0:00:27.3]} 19. Bf6 {[%clk 0:00:21.2]} 19...
Rec8 {[%clk 0:00:20.6]} 20. Qh4 {[%clk 0:00:20.9]} 20... Qe8 {[%clk 0:00:20.7]}
21. Be4 {[%clk 0:00:19.3]} 21... Rab8 {[%clk 0:00:20.4]} 22. Kh1 {[%clk
0:00:18.6]} 22... Bxa2 {[%clk 0:00:18.1]} 23. f4 {[%clk 0:00:18.1]} 23... Rb6
{[%clk 0:00:09.8]} 24. Rf3 {[%clk 0:00:17.4]} 24... Rxf6 {[%clk 0:00:09.4]} 25.
exf6 {[%clk 0:00:18.3]} 25... Qe6 {[%clk 0:00:09.2]} 26. Rh3 {[%clk 0:00:18.2]}
26... h5 {[%clk 0:00:09.5]} 27. f5 {[%clk 0:00:18]} 27... Qxf6 {[%clk
0:00:09.6]} 28. Qg3 {[%clk 0:00:15.2]} 28... Be5 {[%clk 0:00:09]} 29. Qf3 {[%clk
0:00:14.6]} 29... c4 {[%clk 0:00:07.2]} 30. Qe2 {[%clk 0:00:12.6]} 30... Bb3
{[%clk 0:00:06.9]} 31. Rf1 {[%clk 0:00:12.4]} 31... Qg5 {[%clk 0:00:03]} 32.
fxg6 {[%clk 0:00:12]} 32... fxg6 {[%clk 0:00:03.9]} 33. Rhf3 {[%clk 0:00:11.5]}
33... Kh8 {[%clk 0:00:03.1]} 34. Bd5 {[%clk 0:00:11.8]} 34... Bd4 {[%clk
0:00:03.2]} 35. Rf8+ {[%clk 0:00:11.5]} 35... Rxf8 {[%clk 0:00:03.5]} 36. Rxf8+
{[%clk 0:00:12.3]} 36... Kg7 {[%clk 0:00:03.9]} 37. Rg8+ {[%clk 0:00:12.5]}
37... Kh7 {[%clk 0:00:04.4]} 38. Qf1 {[%clk 0:00:12.1]} 38... Bf6 {[%clk
0:00:03.7]} 39. Rf8 {[%clk 0:00:12.1]} 39... Bg7 {[%clk 0:00:03.2]} 40. Rg8
{[%clk 0:00:11.2]} 40... Qxd5 {[%clk 0:00:02.6]} 41. Rb8 {[%clk 0:00:10.2]}
41... Qd4 {[%clk 0:00:02.9]} 42. h3 {[%clk 0:00:10.5]} 42... Qxb2 {[%clk
0:00:03]} 43. Rb7 {[%clk 0:00:10.5]} 43... Qd4 {[%clk 0:00:02.9]} 44. Qf7 {[%clk
0:00:10.6]} 44... Qa1+ {[%clk 0:00:02.2]} 45. Kh2 {[%clk 0:00:10.5]} 45... Qe5+
{[%clk 0:00:02.9]} 46. Kh1 {[%clk 0:00:11.1]} 46... Kh6 {[%clk 0:00:03.5]} 47.
Qg8 {[%clk 0:00:10.3]} 47... Qa1+ {[%clk 0:00:03.9]} 48. Kh2 {[%clk 0:00:10.3]}
48... Be5+ {[%clk 0:00:04.6]} 49. g3 {[%clk 0:00:11]} 49... Qb2+ {[%clk
0:00:05]} 50. Kh1 {[%clk 0:00:11.5]} 50... Qc1+ {[%clk 0:00:05.5]} 51. Kg2
{[%clk 0:00:12.1]} 51... Qd2+ {[%clk 0:00:05.8]} 52. Kf3 {[%clk 0:00:12.8]}
52... Qd3+ {[%clk 0:00:06]} 53. Kg2 {[%clk 0:00:12.7]} 53... Qe4+ {[%clk
0:00:06.3]} 54. Kf2 {[%clk 0:00:12.9]} 54... Qxb7 {[%clk 0:00:07]} 55. Qf8+
{[%clk 0:00:12.3]} 55... Bg7 {[%clk 0:00:06.9]} 56. Qf4+ {[%clk 0:00:13.1]}
56... Kh7 {[%clk 0:00:06.6]} 57. h4 {[%clk 0:00:13]} 57... Qb6+ {[%clk
0:00:06.9]} 58. Kg2 {[%clk 0:00:13]} 58... Qd4 {[%clk 0:00:07.8]} 59. Qc7 {[%clk
0:00:12.1]} 59... c3 {[%clk 0:00:07.9]} 60. Kh3 {[%clk 0:00:12.6]} 60... Be6+
{[%clk 0:00:08]} 61. Kh2 {[%clk 0:00:12.3]} 61... Qd2+ {[%clk 0:00:08.1]} 62.
Kg1 {[%clk 0:00:12.4]} 62... c2 {[%clk 0:00:08.2]} 63. Qxg7+ {[%clk 0:00:11.6]}
63... Kxg7 {[%clk 0:00:07.6]} 0-1